bitfinex-derivatives/quotes_SOLF0:USTF0_20250207
["timestamp","ask_amount","ask_price","bid_price","bid_amount"]
[1738937069681,0.03290001,200.64,200.6,0.03285992]
[1738937070281,4.9828,200.62,200.6,0.03285992]
[1738937070777,34.89655992,200.64,200.56,3.06]
[1738937070979,0.03290001,200.64,200.56,3.06]
[1738937072075,0.03290001,200.64,200.58,0.0332591]
[1738937072679,0.03290001,200.64,200.62,4.9826]
[1738937072883,0.03290001,200.64,200.58,0.0332591]
[1738937073480,0.03290001,200.64,200.63,4.9825]
[1738937074183,0.03290001,200.64,200.63,17.8025]
[1738937074484,1.7811,200.75,200.63,12.82]
[1738937074674,4.9805,200.72,200.63,12.82]
[1738937074877,1.7811,200.75,200.66,4.9816]
[1738937075080,1.7811,200.75,200.63,12.82]
[1738937075279,4.98,200.74,200.63,12.82]
[1738937075487,0.03744196,200.71,200.69,4.9809]
[1738937075784,0.03744196,200.71,200.67,0.03547372]
[1738937076881,2.4574,200.78,200.67,34.89913363]
[1738937077077,1.7499,200.83,200.67,34.89913363]
[1738937077281,4.3639,200.83,200.67,34.89913363]
[1738937077484,2.614,200.83,200.7,34.86365991]
[1738937077686,169.68177306,200.88,200.74,34.86365991]
[1738937077886,169.68177306,200.88,200.83,4.9774]
[1738937078087,169.68177306,200.88,200.74,34.86365991]
[1738937078285,8.382e-05,200.82,200.78,0.03686392]
[1738937078482,8.382e-05,200.82,200.81,4.978]
[1738937078684,7.5896,200.91,200.78,34.86365991]
[1738937078887,7.5896,200.91,200.85,4.977]
[1738937079488,0.03580992,200.9,200.86,5.01355486]
[1738937080090,0.03580992,200.9,200.86,0.03685486]
[1738937080686,4.9764,200.88,200.86,0.03685486]
[1738937081587,4.9765,200.87,200.86,0.03685486]
[1738937082193,0.03580992,200.9,200.86,0.03685486]
[1738937082593,0.03580992,200.9,200.88,4.9763]
[1738937082792,0.03580992,200.9,200.86,0.03685486]
[1738937085990,5.01160992,200.9,200.86,0.03685486]
[1738937086196,0.03580992,200.9,200.86,0.03685486]
[1738937086797,0.03580992,200.9,200.86,14.92685486]
[1738937087688,4.9765,200.87,200.86,14.92685486]
[1738937088090,34.86365991,200.88,200.74,193.0]
[1738937088296,34.86365991,200.88,200.8,4.9782]
[1738937088599,1.8108,200.89,200.73,21.41365724]
[1738937089001,1.8108,200.89,200.82,4.9776]
[1738937089201,1.8108,200.89,200.73,21.41365724]
[1738937089401,7.85e-05,200.83,200.79,21.44539259]
[1738937089598,7.85e-05,200.83,200.8,1.8726]
[1738937090196,7.85e-05,200.83,200.82,4.9778]
[1738937090799,7.85e-05,200.83,200.81,4.978]
[1738937091497,7.85e-05,200.83,200.82,4.9778]
[1738937092001,7.85e-05,200.83,200.8,6.8506]
[1738937092198,7.85e-05,200.83,200.79,0.03173535]
[1738937092398,4.9778,200.82,200.79,0.03173535]
[1738937092610,7.85e-05,200.83,200.79,0.03173535]
[1738937092904,4.9778,200.82,200.79,0.03173535]
[1738937093105,7.85e-05,200.83,200.79,0.03173535]
[1738937093405,4.9778,200.82,200.79,0.03173535]
[1738937093607,7.85e-05,200.83,200.79,0.03173535]
[1738937094506,4.9782,200.81,200.79,0.03173535]
[1738937094702,7.85e-05,200.83,200.79,0.03173535]
[1738937094899,7.85e-05,200.83,200.8,4.9782]
[1738937095103,7.85e-05,200.83,200.79,0.03173535]
[1738937095508,7.85e-05,200.83,200.82,4.9778]
[1738937097500,21.41365724,201.03,200.81,1.7223]
[1738937097706,4.274,201.04,200.88,21.41365724]
[1738937097900,4.274,201.04,200.89,1.8635]
[1738937098703,0.03584698,200.99,200.94,0.03415285]
[1738937099008,0.03584698,200.99,200.94,5.00875285]
[1738937099908,5.00944698,200.99,200.94,5.00875285]
[1738937100505,0.03584698,200.99,200.94,0.03415285]
[1738937100712,34.74945757,200.98,200.94,0.03415285]
[1738937101008,4.975,200.94,200.88,4.9762]
[1738937101208,34.74945757,201.01,200.84,34.74945757]
[1738937101410,34.74945757,201.01,200.87,34.74945757]
[1738937101610,4.9736,200.99,200.87,34.74945757]
[1738937102003,4.9753,200.93,200.87,4.9764]
[1738937102206,34.74945757,200.98,200.91,0.03635639]
[1738937102207,0.0341759,200.95,200.91,0.03635639]
[1738937102603,4.9763,200.88,200.87,3.06]
[1738937103308,4.9774,200.84,200.76,1.8588]
[1738937103507,34.74945757,200.83,200.73,0.52]
[1738937103714,37.36925757,200.83,200.73,0.52]
[1738937103904,0.03361564,200.8,200.76,0.03312944]
[1738937104109,34.78307321,200.8,200.76,0.03312944]
[1738937104612,34.78307321,200.8,200.73,0.52]
[1738937104613,34.74945757,200.77,200.73,0.52]
[1738937104810,34.78307321,200.8,200.73,0.52]
[1738937105410,0.03361564,200.8,200.73,0.52]
[1738937105712,0.03361564,200.8,200.74,0.03457915]
[1738937106409,34.78307321,200.8,200.74,0.03457915]
[1738937106806,0.03361564,200.8,200.74,0.03457915]
[1738937107014,0.03361564,200.8,200.78,4.9787]
[1738937107510,0.03361564,200.8,200.74,0.03457915]
[1738937107814,0.03361564,200.8,200.79,4.9785]
[1738937108207,0.03361564,200.8,200.77,4.9788]
[1738937108408,0.03361564,200.8,200.74,0.03457915]
[1738937109110,5.01201564,200.8,200.75,4.9795]
[1738937109310,0.03361564,200.8,200.74,0.03457915]
[1738937110215,0.03361564,200.8,200.75,4.9794]
[1738937110416,0.03361564,200.8,200.74,0.03457915]
[1738937110813,5.01191564,200.8,200.74,0.03457915]
[1738937111011,0.03361564,200.8,200.74,0.03457915]
[1738937111308,0.03361564,200.8,200.77,4.979]
[1738937111513,0.03361564,200.8,200.74,0.03457915]
[1738937112508,0.03361564,200.8,200.79,4.9785]
[1738937113617,34.74945757,200.98,200.76,34.74945757]
[1738937113916,6.3831,200.97,200.81,34.74945757]
[1738937114117,4.975,200.94,200.89,4.976]
[1738937114723,5.00859575,200.94,200.89,5.00946898]
[1738937115125,5.00859575,200.94,200.89,0.03346898]
[1738937115126,0.03359575,200.94,200.89,0.03346898]
[1738937115819,0.03359575,200.94,200.89,0.55346898]
[1738937116216,0.03359575,200.94,200.93,4.9751]
[1738937116919,0.03359575,200.94,200.91,4.9753]
[1738937117119,0.03359575,200.94,200.89,0.55346898]
[1738937118116,4.9754,200.92,200.89,0.55346898]
[1738937118320,34.78305332,200.94,200.89,0.55346898]
[1738937118828,4.9758,200.9,200.89,0.55346898]
[1738937119124,34.78305332,200.94,200.89,0.55346898]
[1738937119322,4.9756,200.91,200.89,0.55346898]
[1738937119523,0.03359575,200.94,200.89,0.55346898]
[1738937119923,4.9758,200.9,200.89,0.55346898]
[1738937120525,4.976,200.89,200.82,4.9778]
[1738937120721,34.74945757,200.92,200.82,4.9778]
[1738937120920,2.4281,200.91,200.82,4.9778]
[1738937121124,4.977,200.86,200.81,4.978]
[1738937121821,4.9773,200.84,200.81,0.03596804]
[1738937122027,0.03742959,200.86,200.81,0.03596804]
[1738937122427,4.9777,200.83,200.81,0.03596804]
[1738937122626,0.03742959,200.86,200.81,0.03596804]
[1738937124029,0.03742959,200.86,200.83,4.9773]
[1738937124430,0.03742959,200.86,200.81,0.03596804]
[1738937125225,0.03742959,200.86,200.85,4.977]
[1738937125430,0.03742959,200.86,200.81,0.03596804]
[1738937125826,0.03742959,200.86,200.83,4.9775]
[1738937126028,0.03742959,200.86,200.81,0.03596804]
[1738937127335,4.9778,200.82,200.81,0.03596804]
[1738937127530,4.9778,200.82,200.71,1.8163]
[1738937127727,34.74945757,200.8,200.7,4.2438]
[1738937127925,4.9793,200.76,200.71,4.9803]
[1738937128131,34.74945757,200.8,200.66,6.53736377]
[1738937128532,4.9803,200.73,200.68,4.9812]
[1738937128727,34.74945757,200.76,200.66,6.53736377]
[1738937128935,0.03673002,200.75,200.66,6.53736377]
[1738937129329,0.03673002,200.75,200.65,6.1939]
[1738937129732,0.03673002,200.75,200.67,4.9815]
[1738937130234,4.9803,200.72,200.65,6.1939]
[1738937130627,0.03332836,200.71,200.65,6.1939]
[1738937130831,5.01392836,200.71,200.65,4.9818]
[1738937131032,0.03332836,200.71,200.56,40.71465757]
[1738937131330,4.2871,200.75,200.6,34.74945757]
[1738937131527,0.03280401,200.66,200.6,34.74945757]
[1738937131729,4.01e-06,200.66,200.6,34.74945757]
[1738937132136,4.01e-06,200.66,200.65,4.982]
[1738937133939,9.3528,200.84,200.72,34.74945757]
[1738937134440,34.74945757,200.88,200.82,4.9778]
[1738937134640,39.72595757,200.88,200.73,6.4089]
[1738937135037,0.03682034,200.83,200.82,4.9778]
[1738937135940,0.03682034,200.83,200.81,4.978]
[1738937136840,0.03682034,200.83,200.8,0.03702388]
[1738937137842,0.03682034,200.83,200.82,4.9778]
[1738937138339,0.03682034,200.83,200.8,0.03702388]
[1738937138533,0.03682034,200.83,200.81,4.978]
[1738937138943,0.03682034,200.83,200.8,5.01522388]
[1738937139239,0.03682034,200.83,200.8,0.03702388]
[1738937139435,0.03682034,200.83,200.8,5.01512388]
[1738937139634,0.03682034,200.83,200.8,0.03702388]
[1738937140144,2.034e-05,200.83,200.82,4.9778]
[1738937141045,2.034e-05,200.83,200.8,5.01522388]
[1738937141240,2.034e-05,200.83,200.8,0.03702388]
[1738937141845,2.034e-05,200.83,200.81,4.9778]
[1738937142946,2.034e-05,200.83,200.82,4.9778]
[1738937144343,2.034e-05,200.83,200.82,39.72725757]
[1738937144747,2.034e-05,200.83,200.82,26.37176177]
[1738937146552,4.9739,200.98,200.94,4.9748]
[1738937146754,34.75486161,201.02,200.83,6.3754]
[1738937146953,34.75486161,201.02,200.86,34.75486161]
[1738937147445,4.415,201.04,200.9,34.75486161]
[1738937147651,4.415,201.04,201.01,4.9731]
[1738937148041,36.47306161,201.06,200.93,4.5548]
[1738937148243,0.03236405,201.05,201.0,0.03509435]
[1738937148649,0.03236405,201.05,201.04,4.9723]
[1738937149553,0.03236405,201.05,201.02,4.9726]
[1738937150149,0.03236405,201.05,201.0,5.00819435]
[1738937150550,0.03236405,201.05,201.0,0.03509435]
[1738937151750,0.03236405,201.05,201.01,4.973]
[1738937152053,0.03236405,201.05,201.0,0.03509435]
[1738937153153,0.03236405,201.05,201.04,4.9723]
[1738937153450,6.405e-05,201.05,201.04,4.9723]
[1738937155355,6.405e-05,201.05,201.0,0.03509435]
[1738937155952,4.9724,201.04,201.0,0.03509435]
[1738937156262,6.405e-05,201.05,201.0,0.03509435]
[1738937157355,4.9731,201.01,201.0,0.03509435]
[1738937157556,6.405e-05,201.05,201.0,0.03509435]
[1738937157755,6.405e-05,201.05,201.04,4.9723]
[1738937157955,6.405e-05,201.05,201.0,0.03509435]
[1738937158355,6.405e-05,201.05,201.04,4.9723]
[1738937164159,6.405e-05,201.05,201.0,0.03509435]
[1738937164760,6.405e-05,201.05,201.04,4.9723]
[1738937165558,6.405e-05,201.05,201.03,4.9726]
[1738937165762,6.405e-05,201.05,201.0,0.03509435]
[1738937166166,6.405e-05,201.05,201.04,39.72716161]
[1738937166766,4.9682,201.21,201.16,4.9692]
[1738937166968,2.6401,201.22,201.12,34.75486161]
[1738937167165,1.73,201.28,201.21,4.9679]
[1738937167468,4.9667,201.27,201.13,5.9802]
[1738937167668,1.73,201.28,201.13,5.9802]
[1738937167862,1.73,201.28,201.19,4.9686]
[1738937168063,0.03203721,201.22,201.18,0.03825364]
[1738937168258,0.03203721,201.22,201.21,4.9681]
[1738937170067,0.03203721,201.22,201.2,4.9684]
[1738937170466,0.03203721,201.22,201.18,0.03825364]
[1738937170666,0.03203721,201.22,201.19,4.9686]
[1738937170863,0.03203721,201.22,201.18,0.03825364]
[1738937171868,0.03203721,201.22,201.18,5.00715364]
[1738937172071,0.03203721,201.22,201.18,0.03825364]
[1738937172373,0.03203721,201.22,201.19,4.9684]
[1738937172576,0.03203721,201.22,201.18,0.03825364]
[1738937172869,0.03203721,201.22,201.2,4.9683]
[1738937173069,0.03203721,201.22,201.18,0.03825364]
[1738937173466,0.03203721,201.22,201.21,4.9681]
[1738937173869,0.03203721,201.22,201.18,0.03825364]
[1738937175272,0.03203721,201.22,201.21,4.9681]
[1738937175874,0.03203721,201.22,201.18,0.03825364]
[1738937176376,0.03203721,201.22,201.19,4.9686]
[1738937177281,0.03203721,201.22,201.18,0.03825364]
[1738937177769,0.03203721,201.22,201.19,4.9686]
[1738937178173,4.9682,201.21,201.18,0.03825364]
[1738937178377,0.03203721,201.22,201.18,0.03825364]
[1738937178774,0.03203721,201.22,201.21,4.9681]
[1738937178975,3.721e-05,201.22,201.21,4.9681]
[1738937179676,3.721e-05,201.22,201.19,4.9684]
[1738937179879,4.96793721,201.22,201.18,0.03825364]
[1738937180078,3.721e-05,201.22,201.18,0.03825364]
[1738937180880,4.9686,201.19,201.18,0.03825364]
[1738937181182,21.33110353,201.22,201.05,4.2582]
[1738937181380,1.7259,201.18,201.08,4.9713]
[1738937181878,21.33106632,201.22,201.06,21.33106632]
[1738937182382,0.03217198,201.16,201.12,0.03249007]
[1738937182682,4.97,201.14,201.12,0.03249007]
[1738937183182,0.03217198,201.16,201.12,0.03249007]
[1738937183384,2.5792,201.15,201.0,21.33106632]
[1738937183974,21.33106632,201.24,201.0,21.33106632]
[1738937184178,21.33106632,201.24,201.06,21.33106632]
[1738937184479,4.9686,201.2,201.13,0.03175496]
[1738937184683,0.03773826,201.17,201.14,4.9696]
[1738937185075,0.03773826,201.17,201.13,0.03175496]
[1738937185383,21.33106632,201.36,201.14,21.33106632]
[1738937185681,25.80326632,201.36,201.19,21.33106632]
[1738937185887,21.33106632,201.32,201.15,21.33106632]
[1738937186384,21.33106632,201.32,201.19,4.9686]
[1738937186575,0.03492047,201.26,201.21,0.03808696]
[1738937186775,4.9672,201.25,201.21,0.03808696]
[1738937186975,34.65907521,201.31,201.13,34.65907521]
[1738937187178,0.03225627,201.25,201.21,0.03470761]
[1738937187584,0.03225627,201.25,201.21,5.00280761]
[1738937187782,0.03225627,201.25,201.21,0.03470761]
[1738937188887,4.9679,201.22,201.21,0.03470761]
[1738937189088,0.03225627,201.25,201.1,34.65907521]
[1738937189289,2.4565,201.26,201.1,34.65907521]
[1738937189590,4.9693,201.17,201.08,4.3078]
[1738937189886,34.65907521,201.23,201.07,1.8934]
[1738937190283,0.03779658,201.17,201.13,0.03592561]
[1738937190688,4.9694,201.16,201.13,0.03592561]
[1738937190888,0.03779658,201.17,201.13,0.03592561]
[1738937193192,9.658e-05,201.17,201.16,4.9694]
[1738937193582,9.658e-05,201.17,201.16,39.62847521]
[1738937193789,1.7224,201.3,201.16,34.65907521]
[1738937194093,170.56713808,201.4,201.2,34.65907521]
[1738937194291,135.90806287,201.4,201.24,34.65907521]
[1738937194489,135.90806287,201.4,201.25,4.1979]
[1738937194690,4.9637,201.39,201.28,34.65907521]
[1738937194892,135.90806287,201.4,201.28,34.65907521]
[1738937195087,0.03446022,201.36,201.31,0.03332489]
[1738937196591,34.69353543,201.36,201.31,0.03332489]
[1738937196785,34.69353543,201.36,201.18,4.2796]
[1738937196992,4.9661,201.3,201.23,4.9676]
[1738937197599,34.65907521,201.32,201.18,4.2796]
[1738937197804,4.9664,201.29,201.22,4.9679]
[1738937198000,4.4071,201.31,201.23,0.03237808]
[1738937198201,0.03644548,201.27,201.23,0.03237808]
[1738937198406,4.9672,201.25,201.23,0.03237808]
[1738937198703,0.03644548,201.27,201.1,41.19643898]
[1738937198904,0.03644548,201.27,201.11,1.9034]
[1738937199097,34.65907521,201.28,201.11,1.9034]
[1738937199808,0.03696776,201.22,201.17,0.03278471]
[1738937200902,0.03696776,201.22,201.18,34.65907521]
[1738937201100,6.776e-05,201.22,201.18,34.65907521]
[1738937201507,6.776e-05,201.22,201.21,4.9681]
[1738937202209,4.5373,201.4,201.31,4.9656]
[1738937202510,4.5373,201.4,201.26,34.65907521]
[1738937202710,9.5008,201.4,201.34,4.9647]
[1738937203208,9.5008,201.4,201.27,1.755]
[1738937203411,0.03156255,201.39,201.35,0.03148624]
[1738937203600,4.99526255,201.39,201.35,0.03148624]
[1738937203804,0.03156255,201.39,201.35,0.03148624]
[1738937204406,4.964,201.38,201.35,0.03148624]
[1738937204605,0.03156255,201.39,201.35,0.03148624]
[1738937205010,4.9644,201.36,201.35,0.03148624]
[1738937205211,0.03156255,201.39,201.22,36.41407521]
[1738937205603,34.65907521,201.4,201.22,36.41407521]
[1738937206512,0.03584213,201.33,201.29,0.03671953]
[1738937207413,4.9659,201.3,201.29,0.03671953]
[1738937208012,7.4439,201.32,201.29,0.03671953]
[1738937208413,4.9657,201.31,201.29,0.03671953]
[1738937208714,2.4784,201.32,201.29,0.03671953]
[1738937208913,4.9659,201.3,201.29,0.03671953]
[1738937209115,37.13747521,201.32,201.14,34.65907521]
[1738937209309,1.8169,201.31,201.14,34.65907521]
[1738937209513,4.9666,201.28,201.23,4.9676]
[1738937210127,4.9661,201.3,201.25,4.9671]
[1738937210415,4.9661,201.3,201.13,6.394]
[1738937210416,0.03476309,201.28,201.22,34.65907521]
[1738937210714,4.9651,201.34,201.29,4.9661]
[1738937211111,6.0746,201.39,201.25,21.31236228]
[1738937211416,9.9205,201.54,201.21,21.31236228]
[1738937211417,21.31236228,201.46,201.29,21.31236228]
[1738937212012,109.76501591,201.5,201.27,4.2567]
[1738937212013,131.07737819,201.5,201.33,21.31236228]
[1738937212411,4.962,201.47,201.41,4.9631]
[1738937212612,109.76501591,201.5,201.37,21.31236228]
[1738937213120,0.03372884,201.46,201.41,0.03821109]
[1738937213315,135.90806287,201.55,201.42,21.31236228]
[1738937213515,135.90806287,201.55,201.46,21.31236228]
[1738937213915,135.90806287,201.55,201.4,21.31236228]
[1738937214318,169.68177306,201.57,201.4,21.31236228]
[1738937214319,21.31236228,201.58,201.4,21.31236228]
[1738937214515,0.03791267,201.5,201.45,0.03216622]
[1738937214914,0.03791267,201.5,201.39,36.33142957]
[1738937215114,0.03791267,201.5,201.45,0.03671876]
[1738937216515,0.03791267,201.5,201.46,4.9619]
[1738937216711,0.03791267,201.5,201.45,0.03671876]
[1738937217115,0.03791267,201.5,201.45,4.99871876]
[1738937217319,0.03791267,201.5,201.45,0.03671876]
[1738937218319,4.398,201.62,201.47,34.57052957]
[1738937218518,4.9588,201.59,201.53,4.9602]
[1738937219716,0.03505852,201.58,201.54,0.0318914]
[1738937220112,4.9593,201.57,201.54,0.0318914]
[1738937220318,0.03505852,201.58,201.54,0.0318914]
[1738937220613,4.99405852,201.58,201.54,0.0318914]
[1738937220820,0.03505852,201.58,201.54,0.0318914]
[1738937222222,0.03505852,201.58,201.54,4.9916914]
[1738937222521,0.03505852,201.58,201.54,0.0318914]
[1738937222714,4.9598,201.55,201.54,0.0318914]
[1738937223020,0.03505852,201.58,201.43,34.57052957]
[1738937223322,34.57052957,201.6,201.43,34.57052957]
[1738937224022,0.0322973,201.54,201.49,0.0369876]
[1738937225221,4.9605,201.52,201.49,0.0369876]
[1738937225720,4.9923973,201.54,201.5,4.961]
[1738937225921,0.0322973,201.54,201.49,0.0369876]
[1738937226322,44.47312957,201.9,201.51,34.57052957]
[1738937226522,38.76012957,201.84,201.65,34.57052957]
[1738937226718,4.9542,201.78,201.71,4.9558]
[1738937226917,38.76012957,201.84,201.65,34.57052957]
[1738937227216,4.1896,201.84,201.69,34.57052957]
[1738937227417,0.036401,201.77,201.72,0.03302121]
[1738937228519,0.036401,201.77,201.75,4.9548]
[1738937228821,0.036401,201.77,201.72,0.03302121]
[1738937229321,0.036401,201.77,201.72,4.98852121]
[1738937229716,0.036401,201.77,201.72,0.03302121]
[1738937230419,4.990801,201.77,201.72,0.03302121]
[1738937230724,0.036401,201.77,201.72,0.03302121]
[1738937231426,4.9551,201.74,201.72,0.03302121]
[1738937232624,4.9551,201.74,201.63,4.4093]
[1738937232625,1.4972,201.76,201.63,9.3669]
[1738937233328,4.9569,201.67,201.61,1.7188]
[1738937233527,1.4972,201.76,201.61,1.7188]
[1738937233724,0.0344861,201.66,201.62,0.03309836]
[1738937233924,1.4972,201.76,201.61,6.6771]
[1738937234123,0.03248666,201.66,201.62,0.03340375]
[1738937234424,0.03777023,201.66,201.64,4.9575]
[1738937234628,0.03777023,201.66,201.62,0.03506801]
[1738937235031,0.03777023,201.66,201.63,4.9578]
[1738937235326,0.03777023,201.66,201.62,0.03506801]
[1738937235526,4.99487023,201.66,201.62,0.03506801]
[1738937236026,0.03777023,201.66,201.62,0.03506801]
[1738937236529,1.4972,201.76,201.62,0.03506801]
[1738937236728,1.4972,201.76,201.65,21.22086337]
[1738937237021,4.9558,201.71,201.65,26.17796337]
[1738937237226,4.9558,201.71,201.65,21.22086337]
[1738937237427,0.0358886,201.7,201.65,21.22086337]
[1738937237632,0.0358886,201.7,201.66,4.99290651]
[1738937237822,0.0358886,201.7,201.66,0.03580651]
[1738937239926,4.9564,201.69,201.66,0.03580651]
[1738937240126,0.0358886,201.7,201.66,0.03580651]
[1738937240730,4.9568,201.67,201.66,0.03580651]
[1738937241127,21.25675197,201.7,201.53,22.77156337]
[1738937241326,14.91,201.75,201.53,22.77156337]
[1738937241327,2.1237,201.66,201.53,22.77156337]
[1738937241623,9.9088,201.77,201.61,21.22086337]
[1738937241824,21.22086337,202.0,201.61,21.22086337]
[1738937241825,4.9568,201.68,201.61,21.22086337]
[1738937242020,2.1237,201.74,201.61,21.22086337]
[1738937242220,4.9561,201.71,201.66,4.9571]
[1738937242425,0.03256077,201.67,201.66,4.9571]
[1738937242624,0.03256077,201.67,201.65,21.22086337]
[1738937242625,1.6225,201.76,201.65,21.22086337]
[1738937242825,2.1237,201.82,201.69,21.22086337]
[1738937243423,4.9544,201.77,201.72,4.9556]
[1738937243628,2.1237,201.82,201.65,21.22086337]
[1738937243929,0.03263991,201.77,201.72,0.03532825]
[1738937244527,0.03263991,201.77,201.72,21.25619162]
[1738937245622,0.03263991,201.77,201.73,1.981]
[1738937245932,2.0493,201.87,201.73,1.981]
[1738937246330,23.27016337,201.87,201.73,6.9361]
[1738937246529,23.27016337,201.87,201.73,1.981]
[1738937246832,21.22086337,201.83,201.68,21.22086337]
[1738937247032,0.03618884,201.82,201.68,21.22086337]
[1738937247228,21.22086337,201.83,201.73,0.03133135]
[1738937247429,0.03563738,201.77,201.73,0.03133135]
[1738937247830,21.22086337,201.83,201.68,21.22086337]
[1738937248033,0.03342992,201.77,201.73,0.03708825]
[1738937248632,4.9549,201.75,201.73,0.03708825]
[1738937248828,0.03342992,201.77,201.73,0.03708825]
[1738937249029,0.03342992,201.77,201.73,4.99228825]
[1738937249236,0.03342992,201.77,201.73,0.03708825]
[1738937249639,4.98782992,201.77,201.73,0.03708825]
[1738937249834,2.0493,201.87,201.73,21.25795162]
[1738937250031,21.22086337,201.95,201.77,21.22086337]
[1738937251233,0.03341447,201.88,201.84,0.0350329]
[1738937253739,4.98521447,201.88,201.84,0.0350329]
[1738937254034,0.03341447,201.88,201.84,0.0350329]
[1738937255135,0.03341447,201.88,201.87,4.9519]
[1738937255744,4.9493,201.98,201.85,24.88826337]
[1738937256039,21.22086337,202.04,201.85,24.88826337]
[1738937256242,4.9489,202.0,201.94,4.9501]
[1738937256634,21.22086337,202.04,201.85,24.88826337]
[1738937256836,4.9487,202.01,201.93,4.9504]
[1738937257143,21.22086337,202.04,201.92,0.03337926]
[1738937257144,0.03240039,201.97,201.92,0.03337926]
[1738937257338,0.03240039,201.97,201.92,4.98377926]
[1738937257544,0.03240039,201.97,201.92,0.03337926]
[1738937257938,0.03240039,201.97,201.93,4.9504]
[1738937258142,0.03240039,201.97,201.92,0.03337926]
[1738937259740,0.03240039,201.97,201.95,4.9499]
[1738937260239,0.03240039,201.97,201.92,0.03337926]
[1738937260944,0.03240039,201.97,201.92,4.98387926]
[1738937261244,0.03240039,201.97,201.92,0.03337926]
[1738937261635,0.03240039,201.97,201.95,4.9499]
[1738937262144,4.9471,202.07,202.0,4.9485]
[1738937262442,21.22086337,202.14,201.96,21.22086337]
[1738937262443,1.5397,202.13,201.97,2.0982]
[1738937262743,4.947,202.07,201.97,2.0982]
[1738937262944,1.5397,202.13,201.97,2.0982]
[1738937263146,0.0361644,202.04,202.0,0.03647814]
[1738937263542,21.22086337,202.14,201.97,6.5182]
[1738937263746,1.5397,202.18,202.04,21.22086337]
[1738937263949,21.22086337,202.22,202.04,21.22086337]
[1738937264143,4.9455,202.13,202.07,4.9468]
[1738937264344,21.22086337,202.22,202.07,21.22086337]
[1738937264540,21.22086337,202.26,202.07,21.22086337]
[1738937264739,21.22086337,202.26,202.08,2.0982]
[1738937264945,0.03163353,202.17,202.12,0.03635274]
[1738937265445,0.03163353,202.17,202.08,2.0982]
[1738937265744,0.03163353,202.17,202.12,0.03721387]
[1738937265944,0.03163353,202.17,202.14,4.9452]
[1738937266147,0.03163353,202.17,202.12,0.03721387]
[1738937266738,21.22086337,202.3,202.15,21.22086337]
[1738937266946,2.0923,202.32,202.2,4.9438]
[1738937267147,2.0923,202.32,202.16,1.5572]
[1738937267549,4.9419,202.28,202.21,4.9435]
[1738937267748,2.0923,202.32,202.16,1.5572]
[1738937268043,4.943,202.24,202.22,0.03296488]
[1738937268350,0.03439389,202.27,202.22,0.03296488]
[1738937268538,4.9431,202.23,202.22,0.03296488]
[1738937268950,0.03439389,202.27,202.22,0.03296488]
[1738937270154,4.9431,202.23,202.22,0.03296488]
[1738937271855,0.03439389,202.27,202.22,0.03296488]
[1738937272556,4.9431,202.23,202.22,0.03296488]
[1738937272761,0.03439389,202.27,202.22,0.03296488]
[1738937272962,4.9424,202.26,202.22,0.03296488]
[1738937273164,0.03439389,202.27,202.22,0.03296488]
[1738937273558,0.03439389,202.27,202.22,4.97606488]
[1738937273757,0.03439389,202.27,202.23,21.22086337]
[1738937274263,5.0371,202.39,202.28,4.9418]
[1738937274455,4.94,202.36,202.28,4.9418]
[1738937274661,5.0371,202.39,202.28,4.9418]
[1738937274960,5.0371,202.39,202.24,1.5815]
[1738937275167,198.37806829,202.74,202.24,1.5815]
[1738937275365,21.22086337,202.66,202.49,21.22086337]
[1738937275658,4.9332,202.64,202.52,4.9359]
[1738937275965,0.03229892,202.6,202.49,21.22086337]
[1738937276158,0.03229892,202.6,202.56,0.03462168]
[1738937278765,4.9346,202.58,202.56,0.03462168]
[1738937278962,0.03229892,202.6,202.41,21.22086337]
[1738937279164,21.22086337,202.58,202.41,21.22086337]
[1738937279359,21.22086337,202.54,202.37,21.22086337]
[1738937279662,5.1045,202.53,202.37,21.22086337]
[1738937279864,21.22086337,202.5,202.33,21.22086337]
[1738937280159,0.0361563,202.47,202.33,21.22086337]
[1738937280366,0.0361563,202.47,202.43,0.03178972]
[1738937280566,4.9385,202.42,202.33,21.22086337]
[1738937280756,21.22086337,202.46,202.29,22.82186337]
[1738937280957,21.22086337,202.46,202.43,6.656e-05]
[1738937281163,21.22086337,202.5,202.33,21.22086337]
[1738937281363,5.1045,202.53,202.37,21.22086337]
[1738937281767,4.9376,202.46,202.37,26.16046337]
[1738937282172,0.03737623,202.44,202.39,0.03311728]
[1738937282559,0.03737623,202.44,202.39,5.25]
[1738937282769,0.03737623,202.44,202.39,5.283431]
[1738937284570,4.97537623,202.44,202.39,5.283431]
[1738937284965,0.03737623,202.44,202.39,5.283431]